[Event "Kazakhstan Cup Women 2020"]
[Site "Almaty"]
[Date "2020.12.13"]
[Round "3.5"]
[White "Nurmanova, Alua"]
[Black "Dauletova, Gulmira"]
[Result "0-1"]
[ECO "C70"]
[WhiteElo "2026"]
[BlackElo "2319"]
[Annotator "ChessBase"]
[PlyCount "110"]
[EventDate "2020.12.01"]
[EventType "tourn"]
[EventCountry "KAZ"]
[SourceTitle "playchess.com"]
[Source "ChessBase"]
[SourceQuality "1"]
[TimeControl "40/5400+30:1800+30"]

1. e4 {[%emt 0:00:00]} e5 {[%emt 0:00:34]} 2. Nf3 {[%emt 0:00:00]} Nc6 {[%emt 0:01:31]} 3. Bb5 {[%emt 0:00:37]} a6 {[%emt 0:01:06]} 4. Ba4 {[%emt 0:00:43]} g6 {[%emt 0:02:06]} 5. O-O {[%emt 0:08:02]} Bg7 {[%emt 0:05:13]} 6. c3 {[%emt 0:01:58]} b5 {[%emt 0:11:57]} 7. Bb3 {[%emt 0:00:44]} Na5 {[%emt 0:01:09]} 8. Bc2 {[%emt 0:00:35]} d6 {[%emt 0:02:17]} 9. a4 {[%emt 0:09:08]} Bd7 {[%emt 0:05:47]} 10. d4 {[%emt 0:18:26]} exd4 {[%emt 0:05:04]} 11. cxd4 {[%emt 0:08:51]} Ne7 {[%emt 0:01:22]} 12. Bg5 {[%emt 0:07:31]} f6 {[%emt 0:03:20]} 13. Bd2 {[%emt 0:04:46]} Nc4 {[%emt 0:08:02]} 14. Bc3 {[%emt 0:01:41]} d5 {[%emt 0:15:10]} 15. b3 {[%emt 0:01:56]} Nb6 {[%emt 0:12:26]} 16. a5 {[%emt 0:05:21]} Nbc8 {[%emt 0:00:53]} 17. Bb4 {[%emt 0:06:24]} O-O {[%emt 0:03:40]} 18. Nc3 {[%emt 0:02:16]} Bc6 {[%emt 0:10:17]} 19. e5 {[%emt 0:12:47]} Re8 {[%emt 0:02:47]} 20. Re1 {[%emt 0:00:28]} Bb7 {[%emt 0:00:08]} 21. exf6 {[%emt 0:01:42]} Bxf6 {[%emt 0:00:03]} 22. Bc5 {[%emt 0:00:37]} Nd6 {[%emt 0:00:22]} 23. Ne5 {[%emt 0:01:00]} Nef5 {[%emt 0:00:31]} 24. Qg4 {[%emt 0:00:48]} Nh6 {[%emt 0:01:19]} 25. Qd1 {[%emt 0:03:24]} Ndf7 {[%emt 0:01:44]} 26. f4 {[%emt 0:00:49]} Be7 {[%emt 0:01:54]} 27. b4 {[%emt 0:00:57]} Bxc5 {[%emt 0:00:05]} 28. bxc5 {[%emt 0:00:18]} Nxe5 {[%emt 0:00:15]} 29. fxe5 {[%emt 0:00:30]} Qh4 {[%emt 0:00:31]} 30. Qd2 {[%emt 0:01:11]} Rf8 {[%emt 0:00:49]} 31. Rf1 {[%emt 0:00:23]} Rae8 {[%emt 0:01:08]} 32. g3 {[%emt 0:00:45]} Qh3 {[%emt 0:00:11]} 33. Ne2 {[%emt 0:00:26]} Nf5 {[%emt 0:01:36]} 34. Bxf5 {[%emt 0:00:30]} Rxf5 {[%emt 0:00:01]} 35. Rxf5 {[%emt 0:00:27]} Qxf5 {[%emt 0:00:02]} 36. Rf1 {[%emt 0:00:13]} Qc8 {[%emt 0:01:58]} 37. Rf6 {[%emt 0:01:07]} Rf8 {[%emt 0:00:34]} 38. Qf4 {[%emt 0:00:46]} Qe8 {[%emt 0:00:26]} 39. Nc1 {[%emt 0:00:28]} b4 {[%emt 0:00:33]} 40. Rxf8+ {[%emt 0:00:25]} Qxf8 {[%emt 0:00:01]} 41. Qe3 {[%emt 0:30:55]} Bc6 {[%emt 0:19:25]} 42. Qb3 {[%emt 0:00:00]} Bb5 {[%emt 0:00:33]} 43. Qxd5+ {[%emt 0:00:00]} Qf7 {[%emt 0:03:58]} 44. Qd8+ {[%emt 0:00:00]} Kg7 {[%emt 0:00:26]} 45. h4 {[%emt 0:00:53]} Qf1+ {[%emt 0:04:05]} 46. Kh2 {[%emt 0:00:03]} Qf2+ {[%emt 0:00:08]} 47. Kh1 {[%emt 0:00:12]} Qe1+ {[%emt 0:00:46]} 48. Kh2 {[%emt 0:00:23]} Qd2+ {[%emt 0:00:27]} 49. Kg1 {[%emt 0:00:25]} Qxc1+ {[%emt 0:00:15]} 50. Kh2 {[%emt 0:00:22]} Qd2+ {[%emt 0:00:23]} 51. Kg1 {[%emt 0:00:08]} Qe1+ {[%emt 0:00:30]} 52. Kh2 {[%emt 0:00:08]} Qf2+ {[%emt 0:00:35]} 53. Kh1 {[%emt 0:00:06]} Bc6+ {[%emt 0:01:14]} 54. d5 {[%emt 0:00:05]} Qf3+ {[%emt 0:00:38]} 55. Kh2 {[%emt 0:00:05]} Bxd5 {[%emt 0:00:30]} 0-1

[Event "Kazakhstan Cup Women 2020"]
[Site "Almaty"]
[Date "2020.12.16"]
[Round "7.3"]
[White "Kairbekova, Amina"]
[Black "Kamalidenova, Meruert"]
[Result "0-1"]
[ECO "B23"]
[WhiteElo "2065"]
[BlackElo "2231"]
[Annotator "ChessBase"]
[PlyCount "136"]
[EventDate "2020.12.01"]
[EventType "tourn"]
[EventCountry "KAZ"]
[SourceTitle "playchess.com"]
[Source "ChessBase"]
[SourceQuality "1"]
[TimeControl "40/5400+30:1800+30"]

1. e4 {[%emt 0:00:00]} c5 {[%emt 0:00:00]} 2. Nc3 {[%emt 0:00:00]} d6 {[%emt 0:00:00]} 3. d4 {[%emt 0:00:00]} cxd4 {[%emt 0:00:00]} 4. Qxd4 {[%emt 0:00:00]} Nc6 {[%emt 0:00:17]} 5. Qd2 {[%emt 0:00:00]} g6 {[%emt 0:00:23]} 6. b3 {[%emt 0:00:00]} Bh6 {[%emt 0:00:24]} 7. f4 {[%emt 0:00:04]} f5 {[%emt 0:00:29]} 8. Bb2 {[%emt 0:00:06]} Nf6 {[%emt 0:00:20]} 9. Bd3 {[%emt 0:00:09]} Qa5 {[%emt 0:01:37]} 10. exf5 {[%emt 0:01:00]} Bxf5 {[%emt 0:01:27]} 11. Nge2 {[%emt 0:00:13]} O-O-O {[%emt 0:01:58]} 12. O-O-O {[%emt 0:00:12]} Bxd3 {[%emt 0:01:52]} 13. Qxd3 {[%emt 0:00:15]} Qf5 {[%emt 0:00:35]} 14. Qxf5+ {[%emt 0:13:48]} gxf5 {[%emt 0:00:08]} 15. Nd5 {[%emt 0:00:23]} Nxd5 {[%emt 0:01:01]} 16. Rxd5 {[%emt 0:00:09]} Rhg8 {[%emt 0:00:43]} 17. g3 {[%emt 0:13:47]} e6 {[%emt 0:02:03]} 18. Rd3 {[%emt 0:03:16]} Bg7 {[%emt 0:02:34]} 19. Bxg7 {[%emt 0:03:41]} Rxg7 {[%emt 0:00:09]} 20. Rhd1 {[%emt 0:00:27]} Kc7 {[%emt 0:01:47]} 21. c4 {[%emt 0:04:47]} h5 {[%emt 0:02:12]} 22. Nc3 {[%emt 0:01:27]} a6 {[%emt 0:00:56]} 23. Re1 {[%emt 0:01:31]} Rg6 {[%emt 0:01:46]} 24. Rde3 {[%emt 0:09:48]} Kd7 {[%emt 0:02:57]} 25. Ne2 {[%emt 0:04:08]} h4 {[%emt 0:05:22]} 26. gxh4 {[%emt 0:01:04]} Rh6 {[%emt 0:00:55]} 27. Ng3 {[%emt 0:03:52]} Rg8 {[%emt 0:02:11]} 28. h5 {[%emt 0:02:58]} b5 {[%emt 0:04:05]} 29. Rd1 {[%emt 0:03:28]} Kc7 {[%emt 0:03:08]} 30. Red3 {[%emt 0:02:15]} Rd8 {[%emt 0:01:14]} 31. Kb2 {[%emt 0:07:02]} bxc4 {[%emt 0:02:06]} 32. bxc4 {[%emt 0:00:10]} Na5 {[%emt 0:00:10]} 33. Kc3 {[%emt 0:00:59]} Nb7 {[%emt 0:00:10]} 34. Kd4 {[%emt 0:03:10]} Nc5 {[%emt 0:03:32]} 35. R3d2 {[%emt 0:00:09]} Rb8 {[%emt 0:01:27]} 36. Ke3 {[%emt 0:00:35]} Rb6 {[%emt 0:00:07]} 37. Kf3 {[%emt 0:05:03]} Rc6 {[%emt 0:01:21]} 38. Rb1 {[%emt 0:02:17]} Nd7 {[%emt 0:02:26]} 39. Rdb2 {[%emt 0:00:32]} Rxc4 {[%emt 0:05:23]} 40. Rb7+ {[%emt 0:00:00]} Kc6 {[%emt 0:00:00]} 41. Ra7 {[%emt 0:01:48]} Ra4 {[%emt 0:01:15]} 42. Ra8 {[%emt 0:23:10]} Nb6 {[%emt 0:07:30]} 43. Rb8 {[%emt 0:01:42]} Nd5 {[%emt 0:03:57]} 44. Rc1+ {[%emt 0:02:28]} Kd7 {[%emt 0:00:05]} 45. Rb7+ {[%emt 0:00:28]} Kd8 {[%emt 0:00:08]} 46. Rc6 {[%emt 0:03:27]} Ra3+ {[%emt 0:02:33]} 47. Rb3 {[%emt 0:04:04]} Rxa2 {[%emt 0:02:05]} 48. Rc4 {[%emt 0:09:54]} Ra5 {[%emt 0:02:22]} 49. Rb8+ {[%emt 0:01:55]} Ke7 {[%emt 0:00:30]} 50. Rb7+ {[%emt 0:02:10]} Kf6 {[%emt 0:00:36]} 51. Rb3 {[%emt 0:01:07]} Rh8 {[%emt 0:03:16]} 52. Rc6 {[%emt 0:00:20]} Ra4 {[%emt 0:00:49]} 53. Rxd6 {[%emt 0:00:23]} Rxf4+ {[%emt 0:00:14]} 54. Ke2 {[%emt 0:00:41]} Ra4 {[%emt 0:00:23]} 55. Rb7 {[%emt 0:00:37]} f4 {[%emt 0:00:29]} 56. Nf1 {[%emt 0:00:29]} Rxh5 {[%emt 0:00:21]} 57. Ra7 {[%emt 0:00:27]} Re5+ {[%emt 0:02:13]} 58. Kf3 {[%emt 0:00:33]} Ra3+ {[%emt 0:00:11]} 59. Kg4 {[%emt 0:00:29]} Re2 {[%emt 0:03:14]} 60. Raxa6 {[%emt 0:00:31]} Rxa6 61. Rxa6 {[%emt 0:00:05]} Rf2 {[%emt 0:00:12]} 62. Ng3 {[%emt 0:00:54]} fxg3 {[%emt 0:00:10]} 63. Kxg3 {[%emt 0:00:31]} Rf1 {[%emt 0:00:08]} 64. Ra8 {[%emt 0:00:13]} Rg1+ {[%emt 0:00:11]} 65. Kf3 {[%emt 0:00:00]} Rg7 {[%emt 0:00:08]} 66. h3 {[%emt 0:00:41]} Kf5 {[%emt 0:00:09]} 67. Ra4 {[%emt 0:00:40]} e5 {[%emt 0:00:21]} 68. Ra5 {[%emt 0:00:56]} Nf4 {[%emt 0:00:20]} 0-1

[Event "Kazakhstan Cup Women 2020"]
[Site "Almaty"]
[Date "2020.12.16"]
[Round "7.4"]
[White "Nurmanova, Alua"]
[Black "Kurmangaliyeva, Liya"]
[Result "0-1"]
[ECO "B57"]
[WhiteElo "2026"]
[BlackElo "1974"]
[Annotator "RC"]
[PlyCount "72"]
[EventDate "2020.12.01"]
[EventType "tourn"]
[EventCountry "KAZ"]
[SourceTitle "playchess.com"]
[Source "ChessBase"]
[SourceQuality "1"]
[TimeControl "40/5400+30:1800+30"]

1. e4 {[%emt 0:00:00]} c5 {[%emt 0:00:00]} 2. Nf3 {[%emt 0:00:00]} Nc6 {[%emt 0:00:00]} 3. d4 {[%emt 0:00:04]} cxd4 {[%emt 0:00:03]} 4. Nxd4 {[%emt 0:00:07]} Nf6 {[%emt 0:00:04]} 5. Nc3 {[%emt 0:00:06]} d6 {[%emt 0:00:13]} 6. Bc4 {[%emt 0:00:08]} Qb6 {[%emt 0:04:45]} 7. Nb3 {[%emt 0:01:07]} e6 {[%emt 0:00:19]} 8. Bf4 {[%emt 0:01:23]} Ne5 {[%emt 0:01:47]} 9. Be2 {[%emt 0:00:37]} a6 {[%emt 0:02:50]} 10. Qd2 {[%emt 0:07:18]} Be7 {[%emt 0:02:52]} 11. O-O-O {[%emt 0:10:33]} Qc7 {[%emt 0:01:53]} 12. g4 {[%emt 0:01:58]} b5 {[%emt 0:07:35]} 13. g5 {[%emt 0:06:57]} Nfd7 {[%emt 0:06:08]} 14. Qd4 {[%emt 0:09:29]} Bb7 {[%emt 0:06:06]} 15. h4 {[%emt 0:09:25]} O-O {[%emt 0:06:31]} 16. Bg3 {[%emt 0:08:26]} b4 {[%emt 0:05:26]} 17. Qxb4 {[%emt 0:12:30]} a5 {[%emt 0:00:19]} 18. Qd4 {[%emt 0:02:32]} a4 {[%emt 0:01:02]} 19. Nb5 {[%emt 0:04:51]} Qc6 {[%emt 0:06:19]} 20. Nd2 {[%emt 0:00:13]} Ba6 {[%emt 0:02:59]} 21. Nc3 {[%emt 0:00:44]} Bxe2 {[%emt 0:00:21]} 22. Nxe2 {[%emt 0:00:02]} Rfc8 {[%emt 0:00:09]} 23. c3 {[%emt 0:02:27]} Qb5 {[%emt 0:02:32]} 24. f4 {[%emt 0:13:00]} Nd3+ {[%emt 0:11:33]} 25. Kc2 {[%emt 0:00:09]} Nxb2 {[%emt 0:00:05]} 26. Rb1 {[%emt 0:00:17]} a3 {[%emt 0:00:23]} 27. Qe3 {[%emt 0:01:03]} Qa4+ {[%emt 0:01:35]} 28. Nb3 {[%emt 0:00:22]} Rc4 {[%emt 0:00:25]} 29. Ned4 {[%emt 0:01:37]} Rac8 {[%emt 0:00:48]} 30. Be1 {[%emt 0:00:33]} Bd8 {[%emt 0:01:33]} 31. Rxb2 {[%emt 0:05:48]} axb2 {[%emt 0:00:05]} 32. Kxb2 {[%emt 0:00:11]} Ra8 {[%emt 0:00:53]} 33. Nc1 {[%emt 0:00:33]} Bb6 {[%emt 0:02:01]} 34. Qe2 {[%emt 0:01:19]} Bxd4 {[%emt 0:00:09]} 35. Rh3 {[%emt 0:00:58]} Qa3+ {[%emt 0:02:13]} 36. Kb1 {[%emt 0:00:29]} Bxc3 {[%emt 0:00:16]} 0-1

[Event "Kazakhstan Cup Women 2020"]
[Site "Almaty"]
[Date "2020.12.16"]
[Round "7.5"]
[White "Dauletova, Gulmira"]
[Black "Abdildayeva, Laura"]
[Result "0-1"]
[ECO "C02"]
[WhiteElo "2319"]
[BlackElo "1845"]
[Annotator "ChessBase"]
[PlyCount "168"]
[EventDate "2020.12.01"]
[EventType "tourn"]
[EventCountry "KAZ"]
[SourceTitle "playchess.com"]
[Source "ChessBase"]
[SourceQuality "1"]
[TimeControl "40/5400+30:1800+30"]

1. e4 {[%emt 0:00:00]} e6 {[%emt 0:00:00]} 2. d4 {[%emt 0:00:16]} d5 {[%emt 0:00:00]} 3. e5 {[%emt 0:00:25]} c5 {[%emt 0:00:00]} 4. c3 {[%emt 0:00:21]} Nc6 {[%emt 0:00:00]} 5. Nf3 {[%emt 0:00:23]} Bd7 {[%emt 0:00:09]} 6. Be2 {[%emt 0:00:51]} Nge7 {[%emt 0:00:20]} 7. O-O {[%emt 0:00:36]} Nf5 {[%emt 0:00:27]} 8. dxc5 {[%emt 0:01:36]} Bxc5 {[%emt 0:00:17]} 9. Bd3 {[%emt 0:00:36]} Nh4 {[%emt 0:01:20]} 10. Nbd2 {[%emt 0:00:20]} Ng6 {[%emt 0:00:57]} 11. Nb3 {[%emt 0:00:41]} Be7 {[%emt 0:02:44]} 12. Re1 {[%emt 0:01:02]} Qc7 {[%emt 0:00:55]} 13. Qe2 {[%emt 0:02:29]} O-O {[%emt 0:01:21]} 14. Nbd4 {[%emt 0:10:39]} h6 {[%emt 0:01:43]} 15. Nxc6 {[%emt 0:13:51]} bxc6 {[%emt 0:00:30]} 16. c4 {[%emt 0:00:48]} Rab8 {[%emt 0:06:36]} 17. Qc2 {[%emt 0:07:53]} Qa5 {[%emt 0:06:04]} 18. Re2 {[%emt 0:06:24]} Be8 {[%emt 0:00:31]} 19. Bd2 {[%emt 0:11:21]} Qb6 {[%emt 0:01:34]} 20. Rb1 {[%emt 0:02:58]} Nh4 {[%emt 0:04:31]} 21. Nxh4 {[%emt 0:02:52]} Bxh4 {[%emt 0:00:12]} 22. b4 {[%emt 0:00:52]} f5 {[%emt 0:14:08]} 23. exf6 {[%emt 0:02:38]} Rxf6 {[%emt 0:00:19]} 24. c5 {[%emt 0:02:08]} Qd8 {[%emt 0:00:16]} 25. g3 {[%emt 0:03:50]} Bh5 {[%emt 0:04:56]} 26. Re5 {[%emt 0:10:36]} Bf3 {[%emt 0:03:04]} 27. a3 {[%emt 0:09:43]} Bg5 {[%emt 0:07:42]} 28. Rbe1 {[%emt 0:03:57]} Bxd2 {[%emt 0:09:08]} 29. Qxd2 {[%emt 0:00:01]} Qd7 {[%emt 0:00:16]} 30. Qc3 {[%emt 0:02:49]} Rbf8 {[%emt 0:08:45]} 31. Qd4 {[%emt 0:00:02]} h5 {[%emt 0:00:57]} 32. h4 {[%emt 0:02:18]} Qf7 {[%emt 0:01:11]} 33. Rg5 {[%emt 0:00:17]} Bg4 {[%emt 0:01:02]} 34. f4 {[%emt 0:00:06]} Bf5 {[%emt 0:01:03]} 35. Be2 {[%emt 0:00:22]} Rh6 {[%emt 0:08:15]} 36. Bf3 {[%emt 0:00:26]} g6 {[%emt 0:02:57]} 37. Qe5 {[%emt 0:01:22]} Qg7 {[%emt 0:00:46]} 38. Qxg7+ {[%emt 0:00:34]} Kxg7 {[%emt 0:00:04]} 39. Kf2 {[%emt 0:00:10]} Kf6 {[%emt 0:00:17]} 40. Re5 {[%emt 0:00:00]} a5 {[%emt 0:00:00]} 41. Re2 {[%emt 0:06:41]} axb4 {[%emt 0:05:47]} 42. axb4 {[%emt 0:02:14]} Rb8 {[%emt 0:00:51]} 43. Rb2 {[%emt 0:02:06]} Rh7 {[%emt 0:00:27]} 44. Be2 {[%emt 0:00:14]} Rhb7 {[%emt 0:01:15]} 45. b5 {[%emt 0:00:36]} cxb5 {[%emt 0:00:04]} 46. Ke3 {[%emt 0:03:56]} b4 {[%emt 0:02:18]} 47. g4 {[%emt 0:04:59]} hxg4 {[%emt 0:00:17]} 48. Bxg4 {[%emt 0:00:06]} Rh7 {[%emt 0:14:35]} 49. Bxf5 {[%emt 0:09:42]} gxf5 {[%emt 0:00:12]} 50. h5 {[%emt 0:00:24]} b3 {[%emt 0:03:08]} 51. Rg6+ {[%emt 0:05:21]} Kf7 {[%emt 0:00:07]} 52. c6 {[%emt 0:00:26]} Rxh5 {[%emt 0:01:12]} 53. c7 {[%emt 0:00:06]} Rc8 {[%emt 0:00:03]} 54. Rbg2 {[%emt 0:00:54]} Rh7 {[%emt 0:00:13]} 55. R6g3 {[%emt 0:00:36]} Rxc7 {[%emt 0:00:10]} 56. Kd4 {[%emt 0:00:10]} Rc4+ {[%emt 0:00:22]} 57. Ke5 {[%emt 0:00:07]} Re4+ {[%emt 0:00:07]} 58. Kd6 {[%emt 0:00:01]} Rxf4 {[%emt 0:03:23]} 59. Rxb3 {[%emt 0:00:02]} Kf6 {[%emt 0:00:47]} 60. Rbg3 {[%emt 0:00:59]} Rg4 {[%emt 0:00:28]} 61. Rxg4 {[%emt 0:00:23]} fxg4 {[%emt 0:00:05]} 62. Rxg4 {[%emt 0:00:14]} Rh5 {[%emt 0:00:07]} 63. Rf4+ {[%emt 0:01:34]} Rf5 {[%emt 0:00:05]} 64. Rg4 {[%emt 0:00:25]} Rf3 {[%emt 0:01:05]} 65. Rg8 {[%emt 0:01:03]} Re3 {[%emt 0:00:05]} 66. Rf8+ {[%emt 0:00:11]} Kg5 {[%emt 0:00:06]} 67. Kc5 {[%emt 0:00:31]} Re4 {[%emt 0:00:12]} 68. Rf1 {[%emt 0:00:24]} Rf4 {[%emt 0:00:08]} 69. Re1 {[%emt 0:00:23]} Kf5 {[%emt 0:00:20]} 70. Kd6 {[%emt 0:00:10]} Re4 {[%emt 0:00:03]} 71. Rf1+ {[%emt 0:00:04]} Kg4 {[%emt 0:00:03]} 72. Kc5 {[%emt 0:00:16]} d4 {[%emt 0:00:48]} 73. Kc4 {[%emt 0:00:21]} e5 {[%emt 0:00:09]} 74. Kd5 {[%emt 0:00:54]} Re3 {[%emt 0:00:04]} 75. Kc4 {[%emt 0:00:44]} d3 {[%emt 0:00:21]} 76. Kc3 {[%emt 0:00:07]} e4 {[%emt 0:00:04]} 77. Rf8 {[%emt 0:01:29]} Re2 {[%emt 0:00:11]} 78. Rg8+ {[%emt 0:00:33]} Kf3 {[%emt 0:00:06]} 79. Rf8+ {[%emt 0:00:07]} Ke3 {[%emt 0:00:05]} 80. Rh8 {[%emt 0:00:16]} Rc2+ {[%emt 0:00:04]} 81. Kb3 {[%emt 0:00:06]} Rc7 {[%emt 0:00:14]} 82. Kb2 {[%emt 0:01:38]} d2 {[%emt 0:00:08]} 83. Rh3+ {[%emt 0:00:26]} Kd4 {[%emt 0:00:05]} 84. Rh1 {[%emt 0:00:41]} e3 {[%emt 0:00:04]} 0-1